Cogmind - Beta 15 @@@ ROGUE MODE // 2025.05.09 @ 20:03:20 Player: Cholfo Result: Destroyed by D-53 Grenadier with Mini Grenade Launcher Performance ------------- Evolutions (0) 0 Regions Visited (4) 800 Robots Destroyed (21) 105 Value Destroyed (360) 360 Prototype IDs (4) 80 Alien Tech Used (0) 0 Bonus (0) 0 TOTAL SCORE: 1345 Bonus ------- None Cogmind --------- Core Integrity 0/250 Matter 212/300 Energy 65/100 System Corruption 0% Temperature Cool (0) Movement Core (400) Ox7 Location -9/Mines Parts ------- > --- POWER (1) -------- (None) > --- PROPULSION (2) --- (None) > --- UTILITY (2) ------ Large Storage Unit > --- WEAPON (2) ------- Light Assault Rifle Light Cannon > --- INVENTORY (15) --- Scrap Suit High-capacity Matter Pod (138) Experimental Sensor Array Makeshift Terrain Scan Processor Targeting Computer Makeshift System Shield Makeshift System Restoration Module Datajack Mining Laser Mace Peak State ------------ > --- POWER ------------ Makeshift Power Source > --- PROPULSION ------- Wheel Wheel > --- UTILITY ---------- Large Storage Unit Light Armor Plating > --- WEAPON ----------- Assault Rifle Mace > --- INVENTORY -------- Scrap Suit High-capacity Matter Pod Experimental Sensor Array Makeshift Terrain Scan Processor Targeting Computer Makeshift System Shield Makeshift System Restoration Module Light Assault Rifle Light Cannon Grenade Launcher Rocket Launcher Datajack Mining Laser Mace [Rating: 15] Favorites ----------- Power Light Nuclear Core Engine Ion Engine Power Core Light Nuclear Core Propulsion Wheel Wheel Wheel Utility Large Storage Unit Device Seismic Detector Storage Large Storage Unit Protection Light Armor Plating Weapon Assault Rifle Energy Gun Small Laser Ballistic Gun Assault Rifle Ballistic Cannon Light Cannon Launcher Grenade Launcher Impact Weapon Mace Build | -11 -10 -10 -10 -9 ------- Run | Yrd Mat Min Exi Min Slots Evolved . | . . . . . Power . | . . . . . Propulsion . | . . . . . Utility . | . . . . . Weapon . | . . . . . Parts Attached 18 | 8 4 3 1 2 Power 3 | 1 1 . 1 . Engine 2 | 1 . . 1 . Core 1 | . 1 . . . Reactor . | . . . . . Propulsion 3 | 2 . 1 . . Treads . | . . . . . Leg . | . . . . . Wheel 3 | 2 . 1 . . Hover . | . . . . . Flight . | . . . . . Utility 5 | 3 1 1 . . Device 2 | 2 . . . . Storage 2 | 1 1 . . . Processor . | . . . . . Hackware . | . . . . . Protection 1 | . . 1 . . Artifact . | . . . . . Weapon 7 | 2 2 1 . 2 Energy Gun 1 | 1 . . . . Energy Cannon . | . . . . . Ballistic Gun 2 | 1 . . . 1 Ballistic Cannon 1 | . . . . 1 Launcher 2 | . 1 1 . . Special Weapon . | . . . . . Impact Weapon 1 | . 1 . . . Slashing Weapon . | . . . . . Piercing Weapon . | . . . . . Special Melee Weapon . | . . . . . Unidentified Prototypes . | . . . . . Parts Lost 11 | . . 3 . 8 Power 2 | . . 1 . 1 Propulsion 3 | . . 1 . 2 Utility 2 | . . 1 . 1 Weapon 4 | . . . . 4 Highest Loss Streak 8 | . . 3 . 8 To Critical Strikes . | . . . . . Average Backups 9 | 2 7 10 12 13 Power . | . . . . . Propulsion 1 | 1 2 . . . Utility 2 | . 1 3 5 7 Weapon 4 | . 2 5 6 5 Tool/Special . | . . . . . Unused Backups 13 | . 3 1 . 9 Power 1 | . 1 . . . Propulsion 2 | . 2 . . . Utility 7 | . . . . 7 Weapon 2 | . . 1 . 1 Tool/Special 1 | . . . . 1 Average Slot Usage (%) 94 | . 100 93 90 90 Engine 4 | . 6 . 4 14 Core 4 | . 7 8 . . Wheel 27 | . 28 27 28 23 Device 7 | . 14 8 . . Storage 14 | . 14 14 14 14 Protection 6 | . . 4 14 9 Energy Gun 3 | . 8 . . . Ballistic Gun 13 | . 13 12 14 9 Impact Weapon 10 | . 5 14 14 14 Peak Build Rating 15 | 7 11 12 15 15 Average Rating 9 | 5 8 10 11 12 On Entrance 8 | . 7 11 9 15 Naked Turns . | . . . . . Heaviest Build 31 | 14 30 30 31 31 Greatest Support 20 | 20 20 20 20 20 Greatest Overweight (x) 2 | . 1 1 1 2 Average Overweight (x) . | . . 1 1 1 Largest Inventory Capacity 15 | 8 15 15 15 15 Average Capacity 12 | 7 9 15 15 15 Most Carried 15 | 5 9 13 15 15 Average Carried 9 | 2 7 10 13 14 Final Capacity 15 | 8 15 15 15 15 Final Carried 15 | 5 9 12 15 11 Class Distribution -------------------- 100% | Mutant Dominant Class ---------------- Mutant | -10/Materials Mutant | -10/Mines Mutant | -10/Exiles Mutant | -9/Mines Resources | -11 -10 -10 -10 -9 ----------- Run | Yrd Mat Min Exi Min Matter Collected 672 | 295 146 213 18 . Remotely 77 | 77 . . . . Salvage Created 603 | 152 244 171 18 18 Parts 37 | 6 21 6 . 4 Haulers Intercepted 1 | . 1 . . . Recyclers Shooed . | . . . . . Parts Field Recycled . | . . . . . Retrieved Matter . | . . . . . Parts Self-Destructed . | . . . . . Prevented . | . . . . . Kills | -11 -10 -10 -10 -9 ------- Run | Yrd Mat Min Exi Min Combat Hostiles Destroyed 12 | . 7 5 . . Guns 5 | . 5 . . . AOE 7 | . 2 5 . . Classes Destroyed 7 | 2 4 1 . . Builder 4 | . 1 1 . 2 Tunneler 2 | 2 . . . . Hauler 1 | . 1 . . . Recycler 2 | 1 . 1 . . Swarmer 6 | . 3 3 . . Grunt 4 | . 4 . . . Sentry 2 | . . 2 . . Best Kill Streak 5 | 3 4 5 . 2 Combat Bots Only 5 | . 3 5 . . Max Kills in Single Turn 3 | 1 2 3 . 1 Gunslinging . | . . . . . Exploded 3 | . 2 3 . . Melee . | . . . . . Uniques/NPCs Destroyed . | . . . . . Combat | -11 -10 -10 -10 -9 -------- Run | Yrd Mat Min Exi Min Hostile Shots Fired 64 | . 31 17 . 16 Missed 18 | . 13 4 . 1 Hits 46 | . 18 13 . 15 Projectile 46 | . 18 13 . 15 AOE 18 | . . . . 18 Damage Taken 1108 | . 218 208 . 682 Core 261 | . 58 46 . 157 Absorbed by Shields . | . . . . . Core Remaining (%) 100 | 100 . . . . Volleys Fired 41 | 5 27 5 . 4 Largest 2 | 2 2 1 . 1 Hottest 70 | 60 70 33 . 33 Shots Fired 63 | 10 44 5 . 4 Gun 52 | 10 42 . . . Cannon . | . . . . . Launcher 11 | . 2 5 . 4 Special . | . . . . . Kinetic 30 | 5 25 . . . Thermal 22 | 5 17 . . . Explosive 11 | . 2 5 . 4 Electromagnetic . | . . . . . Robot Hit Streak 5 | 4 5 4 . 1 Robot Miss Streak 2 | 2 2 1 . 2 Penetration Max . | . . . . . Secondary Targets . | . . . . . Shots Hit Robots 43 | 5 29 7 1 1 Core Hits 37 | 4 15 11 1 6 Critical Kills . | . . . . . Critical Parts Destroyed 1 | . . 1 . . Critical Strikes 1 | . . 1 . . Smash 1 | . . 1 . . Melee Attacks 8 | . 4 3 1 . Impact 8 | . 4 3 1 . Slashing . | . . . . . Piercing . | . . . . . Sneak Attacks 1 | . . 1 . . Combat Hostiles . | . . . . . Follow-up Attacks . | . . . . . Damage Inflicted 1271 | 56 549 414 117 135 Guns 399 | 56 343 . . . Cannons . | . . . . . Explosions 561 | . 162 264 . 135 Melee 311 | . 44 150 117 . Ramming . | . . . . . Kinetic 260 | 24 236 . . . Thermal 139 | 32 107 . . . Explosive 561 | . 162 264 . 135 Electromagnetic . | . . . . . Impact 311 | . 44 150 117 . Slashing . | . . . . . Piercing . | . . . . . Highest Corruption . | . . . . . Average Corruption . | . . . . . Corruption Purged . | . . . . . Corruption Blocked . | . . . . . Overload Shots . | . . . . . Overflow Damage 94 | . . 94 . . Projectiles . | . . . . . Explosions 14 | . . 14 . . Melee 80 | . . 80 . . Knockbacks 3 | . . 3 . . Impact 3 | . . 3 . . Kinetic . | . . . . . Secondary . | . . . . . Self-Inflicted Damage 94 | . . 64 . 30 Shots 4 | . . 3 . 1 Rammed . | . . . . . Targets Rammed . | . . . . . Kicked . | . . . . . Crushed . | . . . . . Highest Temperature 30 | . 30 7 . 2 Average Temperature 10 | . 11 5 . 1 Received Heat Transfer 147 | . 120 27 . . Siege Activations . | . . . . . Martial Activations . | . . . . . Shielding Activations . | . . . . . Robots Disrupted . | . . . . . Combat Hostiles . | . . . . . Robots Corrupted 2 | . . 2 . . Combat Hostiles . | . . . . . Parts Fried 2 | . . 2 . . Impact Corruptions 3 | . . 3 . . Robots Melted . | . . . . . Combat Hostiles . | . . . . . Parts Melted . | . . . . . Heat Transferred 325 | 75 250 . . . Parts Sabotaged . | . . . . . Parts Stolen . | . . . . . Parts Stripped . | . . . . . Power Chain Reactions . | . . . . . Alert | -11 -10 -10 -10 -9 ------- Run | Yrd Mat Min Exi Min Maximum Alert Level . | . . . . . Low Security (%) 100 | 100 100 100 . 100 Level 1 . | . . . . . Level 2 . | . . . . . Level 3 . | . . . . . Level 4 . | . . . . . Level 5 . | . . . . . High Security . | . . . . . Max Security . | . . . . . Peak Influence 100 | 10 92 100 . 3 Initial 13 | . . 13 . . Average 34 | 1 41 34 . . Influence Increases 418 | 15 233 145 . 25 Destroy 0b10 Robot/C 240 | . 140 100 . . Destroy 0b10 Robot/NC 45 | 15 10 10 . 10 Destroy Leader 42 | . 32 10 . . Successful Hack 10 | . 10 . . . Destroy Structure 51 | . 11 25 . 15 Lose Combat Pursuer 30 | . 30 . . . Influence Decreases 418 | 15 199 119 60 25 Entered New Map 81 | . . 21 60 . Time Decay 287 | 15 199 73 . . Lost Part 50 | . . 25 . 25 Squads Dispatched 2 | . 1 . . 1 Investigation 1 | . 1 . . . Extermination . | . . . . . Reinforcement 1 | . . . . 1 Assault . | . . . . . Garrison . | . . . . . Intercept . | . . . . . Searches Triggered . | . . . . . Construction Impeded 1 | . . . . 1 Haulers Reinforced . | . . . . . Active Scanning Responses . | . . . . . Cargo Convoy Interrupts . | . . . . . Stealth | -11 -10 -10 -10 -9 --------- Run | Yrd Mat Min Exi Min Distress Signals 1 | . 1 . . . Communications Jammed . | . . . . . Distress Signals . | . . . . . Times Spotted 21 | . 14 5 . 2 Peak Tracking Total 5 | . 3 5 . 2 Tactical Retreats 1 | . 1 . . . Traps | -11 -10 -10 -10 -9 ------- Run | Yrd Mat Min Exi Min Traps Triggered 1 | . 1 . . . Indirectly . | . . . . . Trap Hack Attempts . | . . . . . Triggered . | . . . . . Disarmed . | . . . . . Reprogrammed . | . . . . . Reused . | . . . . . Traps Extracted . | . . . . . Installed . | . . . . . Triggered . | . . . . . Machines | -11 -10 -10 -10 -9 ---------- Run | Yrd Mat Min Exi Min Machines Disabled 2 | . . 2 . . Max in Single Turn 2 | . . 2 . . Machines Repaired . | . . . . . Machines Dismantled . | . . . . . Machines Sabotaged . | . . . . . Overloaded Fab Kills . | . . . . . Hacking | -11 -10 -10 -10 -9 --------- Run | Yrd Mat Min Exi Min Machines Accessed 10 | . 6 . 4 . Terminals 4 | . 4 . . . Fabricators . | . . . . . Repair Stations . | . . . . . Recycling Units 2 | . 2 . . . Scanalyzers . | . . . . . Garrison Access . | . . . . . Total Hacks 71 | . 22 . 49 . Successful 61 | . 12 . 49 . Failed 10 | . 10 . . . Catastrophic . | . . . . . Database Lockouts . | . . . . . Manual 16 | . 15 . 1 . Terminals 17 | . 17 . . . Fabricators . | . . . . . Repair Stations . | . . . . . Recycling Units 5 | . 5 . . . Scanalyzers . | . . . . . Garrison Access . | . . . . . Terminal Hacks 53 | . 4 . 49 . Record 50 | . 1 . 49 . Prototype ID Bank 2 | . 2 . . . Zone Layout 1 | . 1 . . . Fabricator Hacks . | . . . . . Repair Station Hacks . | . . . . . Recycling Unit Hacks 4 | . 4 . . . Process 1 | . 1 . . . Report Inventory 2 | . 2 . . . Retrieve Matter 1 | . 1 . . . Scanalyzer . | . . . . . Garrison Access Hacks . | . . . . . Unauthorized Hacks 4 | . 4 . . . Terminals 4 | . 4 . . . Botnet 4 | . 4 . . . Fabricators . | . . . . . Repair Stations . | . . . . . Recycling Units . | . . . . . Scanalyzers . | . . . . . Garrison Access . | . . . . . Data Cores Recovered . | . . . . . Used . | . . . . . Hacking Detections 5 | . 5 . . . Full Trace Events 2 | . 2 . . . Feedback Events . | . . . . . Feedback Blocked . | . . . . . Robot Schematics Acquired . | . . . . . Robots Built . | . . . . . Authchips . | . . . . . Time . | . . . . . Total Robot Build Rating . | . . . . . Part Schematics Acquired . | . . . . . Parts Built . | . . . . . Authchips . | . . . . . Time . | . . . . . Total Part Build Rating . | . . . . . Parts Repaired . | . . . . . Time . | . . . . . Parts Recycled . | . . . . . Recycled Matter 9 | . 9 . . . Retrieved Matter 9 | . 9 . . . Retrieved Components . | . . . . . Parts Scanalyzed . | . . . . . Part Schematics Acquired . | . . . . . Parts Damaged . | . . . . . Bothacking | -11 -10 -10 -10 -9 ------------ Run | Yrd Mat Min Exi Min Used RIF Installer . | . . . . . Robots Hacked . | . . . . . Non-combat . | . . . . . Combat . | . . . . . Robot Hacks Applied . | . . . . . Relay Couplers Released . | . . . . . Fabnet Peak Effective % . | . . . . . Robots Rewired . | . . . . . Allies Hacked . | . . . . . Hacks Repelled . | . . . . . Allies | -11 -10 -10 -10 -9 -------- Run | Yrd Mat Min Exi Min Total Allies 3 | . . 3 . . Largest Group 3 | . . 3 3 3 Highest-Rated Group 40 | . . 40 40 40 Highest-Rated Ally 16 | . . 16 16 16 Total Orders . | . . . . . Ally Attacks 2 | . . . . 2 Total Damage 11 | . . . . 11 Kills . | . . . . . Allies Corrupted . | . . . . . Allies Melted . | . . . . . Intel | -11 -10 -10 -10 -9 ------- Run | Yrd Mat Min Exi Min Active Infowar (turns) 695 | 26 518 151 . . Seismic 695 | 26 518 151 . . Robot Analysis Total . | . . . . . Derelict Logs Recovered 1 | . . 1 . . Drone Launches . | . . . . . Drone Recoveries . | . . . . . Exploration | -11 -10 -10 -10 -9 ------------- Run | Yrd Mat Min Exi Min Turns Passed 1338 | 91 518 256 443 30 Spaces Moved 1257 | 74 490 228 447 18 Core 4 | 4 . . . . Treads . | . . . . . Legs . | . . . . . Wheels 1253 | 70 490 228 447 18 Hover . | . . . . . Flight . | . . . . . Fastest Speed 50 | 50 80 95 95 95 Average Speed 89 | 78 82 95 95 96 Slowest Speed 110 | 80 95 95 95 110 Overloaded Moves . | . . . . . Propulsion Burnouts . | . . . . . Robots Hopped . | . . . . . Potential Cave-ins . | . . . . . Cave-ins Triggered . | . . . . . Exploration Rate (%) 45 | 5 76 48 90 9 Regions Visited 4 Branch Regions 3 Pre-discovered Areas 2 | . . 1 1 . Known Exits Taken . | . . . . . Unknown Exits Taken 4 | 1 1 1 1 . Scrap Searched 1 | . . 1 . . Spaces Dug . | . . . . . Terrain Destroyed 57 | . 12 24 . 21 Melee . | . . . . . Projectile . | . . . . . AOE 57 | . 12 24 . 21 Terrain Rammed . | . . . . . Walls Destroyed . | . . . . . Machines Disabled . | . . . . . Actions | -11 -10 -10 -10 -9 --------- Run | Yrd Mat Min Exi Min Total 1391 | 93 553 256 463 26 Wait 26 | . 4 10 12 . Move 1253 | 73 489 227 446 18 Hop . | . . . . . Pick Up 25 | 6 11 5 3 . Fast Attach 10 | 7 2 . 1 . Attach 6 | . . 2 . 4 Detach . | . . . . . Swap 12 | 1 8 3 . . Drop 10 | 1 8 1 . . Fire 41 | 5 27 5 . 4 Melee 8 | . 4 3 1 . Ram . | . . . . . Kick . | . . . . . Crush . | . . . . . Escape Stasis . | . . . . . Rewire . | . . . . . Trap . | . . . . . Miscellaneous . | . . . . . Route ------- -11/Scrapyard -10/Materials (discovered 3 exits: [*Mat x2] / [*Min]) -10/Mines (discovered 2 exits: [*Mat] / *Exi) -10/Exiles (discovered 2 exits: [*Min x2]) -9/Mines (discovered 1 exit: [*Mat]) History --------- Turn | Location | Event 17 | -11/Scrapyard | Discovered new exit (range 15) 92 | -11/Scrapyard | Entered Materials 240 | -10/Materials | Discovered new exit (range 15) 309 | -10/Materials | Build established: Mutant 325 | -10/Materials | Discovered new exit (range 6) 383 | -10/Materials | Discovered new exit (range 11) 610 | -10/Materials | Entered Mines 628 | -10/Mines | Learned location of Storage (-9) 644 | -10/Mines | Discovered new exit (range 5) 685 | -10/Mines | Found a Scrap Suit stashed away for nefarious purposes 687 | -10/Mines | Found Scrap Suit 705 | -10/Mines | Met a Derelict bent on vengeance 720 | -10/Mines | Found a damaged Exp. Sensor Array with a note attached 721 | -10/Mines | Found Prototype Device 741 | -10/Mines | Learned Materials interactive machine intel 777 | -10/Mines | Joined a pair of Derelicts in attacking an 0b10 outpost 798 | -10/Mines | Lost 3 parts (1p1n1u) 819 | -10/Mines | Assisted by bots powering up and referring to "LRC-V3" 857 | -10/Mines | Deemed a non-threat by the Exiles lab entrance 857 | -10/Mines | Discovered new exit (range 5) 866 | -10/Mines | Entered Exiles 866 | -10/Exiles | Found Exiles lab destroyed 866 | -10/Exiles | Accompanied by 3 allies 916 | -10/Exiles | Discovered new exit (range 15) 1100 | -10/Exiles | Learned location of Zion (-7) 1288 | -10/Exiles | Discovered new exit (range 12) 1309 | -10/Exiles | Entered Mines 1309 | -9/Mines | Accompanied by 3 allies 1310 | -9/Mines | Assembled infested the area 1313 | -9/Mines | Discovered new exit (range 14) 1328 | -9/Mines | Core integrity fell below 50% 1336 | -9/Mines | Core integrity fell below 20% 1339 | -9/Mines | Destroyed by D-53 Grenadier with Mini Grenade Launcher Last Messages --------------- 01324_ R-06 Scavenger collects Imp. Terrain Scanner. 01325_ Wheel destroyed. 01325_ T-07 Excavator destroyed. 01328_ U-05 Engineer lays Concrete. 01328_ U-05 Engineer destroyed. 01328_ Lgt. Armor Plating destroyed. 01328_ R-06 Scavenger destroyed. 01329_ ALERT: Construction progress impeded, dispatching reinforcements to local area. 01330_ U-05 Engineer destroyed. 01330_ Mak. Power Source destroyed. 01333_ The unstable cave ceiling collapses. 01333_ Rocket Launcher destroyed. 01334_ The unstable cave ceiling collapses. 01334_ Wheel destroyed. 01335_ Grenade Launcher destroyed. 01336_ The unstable cave ceiling collapses. 01337_ Mace destroyed. 01338_ The unstable cave ceiling collapses. Map ----- +----------------------------------------------------+ | ????????????????????????????????????????????? | | ????????????????????????????????????????????? | | ????????????????????????????????????????????? | | ????????????????????????????????????????????? | | ????????????????????????????????????????????? | | ????????????????????????????????????????????? | | ????????????????????????????????????????????? | | ????????????????????????????????????????????? | | ????????????????????????????????????????????? | | ????????????????????????????????????????????? | | ????????????????????????????????????????????? | | ?????????????????##?????????????????????????? | | ?????????????????# #????????????????????????? | | ????????????????? ????????????????????????? | | ???????########?? #???????????????????????? | | ??????## ### #? ##?????????????????????? | | ??????# ## ##????????????????????? | | ??????# ?????????????????????? | | ??????# % # #????????????????????? | | ??????# = # < #????????????????????? | | ??????# * %##????????????????????? | | ??????## ## ! ##???????????????????? | | ???????## ##??????????????????? | | ????????# # #??????????????????? | | ????????# d # #??????????????????? | | ????????# @ #??????????????????? | | ????????# #??????????????????? | | ????????##### #??????????????????? | | ????????????# ##??????????????????? | | ????????????# ##???????????????????? | | ????????????# # # ##????????????????????? | | ????????????## #### #?????????????????????? | | ?????????????####???? #?????????????????????? | | ????????????????????? ?????????????????????? | | ????????????????????? ?????????????????????? | | ?????????????????????###????????????????????? | | ????????????????????????????????????????????? | | ????????????????????????????????????????????? | | ????????????????????????????????????????????? | | ????????????????????????????????????????????? | | ????????????????????????????????????????????? | | ????????????????????????????????????????????? | | ????????????????????????????????????????????? | | ????????????????????????????????????????????? | | | | | | | | | | | | | +----------------------------------------------------+ Best States ------------- Heat Dissipation 25 Energy Generation 15 Energy Capacity 250 Matter Stores 300 Matter Capacity 300 Sight Range 16 Terrain Scan Density 10 Armor Coverage 150 Evasion (%) 44 Item Schematics ----------------- None Robot Schematics ------------------ None Fabricated ------------ Nothing Repaired ---------- Nothing Alien Tech Used ----------------- None Achievements -------------- Quantum Hacking True Hacker Challenges ------------ None Game ------ Seed AblativeProtonChainsword Manual? 0 Play Time 00:34:55 Cumulative 7.7 hours Start 2025.05.09 @ 19:26:30 End 2025.05.09 @ 20:03:20 Sessions 1 Manual Loads 0 Difficulty Rogue Special Mode None Game No. 8 Rogue 8 Adventurer 0 Explorer 0 Win Type - Total 0 Types 0/0/0/0/0/0/0/0/0/0 Lore% 8 Gallery% 13 Achievement% 15 Wizard Run 0 Options --------- Layout 1 ASCII 0 Keyboard 0 Movement Numpad Keybinds 0 Fullscreen 2 Font 32/SmallcapsGlow Map View 50x35 Zoom Use 0% Tactical HUD 1 Map Filters NONE Filters NONE Steam 1 RUN: 856a7793-336b-486a-89eb-893c1d40a6ea